bitfinex-derivatives/quotes_ETHF0:USTF0_20240910
["timestamp","ask_amount","ask_price","bid_price","bid_amount"]
[1725995643163,0.42317,2363.0,2362.8,1.1433]
[1725995643352,0.42317,2363.0,2362.4,0.42326]
[1725995643353,0.42322,2362.7,2362.4,0.42326]
[1725995643555,4.35799,2362.9,2362.5,41.5456]
[1725995643860,3.72323,2362.7,2362.5,41.5456]
[1725995644064,1.52216899,2362.7,2362.5,41.5456]
[1725995644559,1.09893899,2362.7,2362.5,41.96884]
[1725995645153,1.52215899,2362.7,2362.5,41.96884]
[1725995645351,0.42322,2362.7,2362.5,41.96884]
[1725995645857,0.42324,2362.6,2362.5,41.5456]
[1725995646668,0.42324,2362.6,2362.5,41.96885]
[1725995646865,1.09893899,2362.8,2362.7,0.42322]
[1725995647064,1.09893899,2363.1,2363.0,0.42316]
[1725995647262,0.42315,2363.1,2362.9,0.42317]
[1725995647458,0.42315,2363.1,2363.0,1.1349]
[1725995647654,0.42315,2363.1,2363.0,41.9349]
[1725995647959,3.3,2363.1,2362.2,1.05826]
[1725995648158,3.3,2363.1,2362.7,0.4232]
[1725995648159,0.42318,2362.9,2362.7,0.4232]
[1725995648359,0.42318,2362.9,2362.8,0.3816]
[1725995649561,1.52456302,2362.9,2362.8,0.3816]
[1725995649761,0.48868302,2362.9,2362.8,5.0368]
[1725995649966,0.48868302,2363.2,2363.1,0.42315]
[1725995650155,0.42311,2363.4,2363.2,0.42312]
[1725995650357,0.42311,2363.4,2363.3,0.80411]
[1725995651161,1.65207453,2363.5,2363.3,0.80411]
[1725995651367,0.42308,2363.5,2363.4,0.42309]
[1725995651668,0.42308,2363.5,2363.4,0.79539]
[1725995651965,0.42305,2363.7,2363.5,0.42306]
[1725995652869,4.2312,2363.6,2362.9,4.96539757]
[1725995653068,3.3,2363.2,2362.6,41.90102938]
[1725995653365,0.42318,2362.9,2362.8,0.3847]
[1725995653563,3.3,2363.0,2362.8,0.3847]
[1725995653564,3.72318,2363.0,2362.8,0.3847]
[1725995653758,3.72318,2363.0,2362.8,0.8079]
[1725995653955,3.3,2363.0,2362.9,0.42318]
[1725995654162,3.72317,2363.0,2362.8,0.80789]
[1725995654370,0.42317,2363.0,2362.8,0.80789]
[1725995657574,0.42316,2363.0,2362.9,0.42317]
[1725995657770,1.65207453,2363.2,2363.0,0.42316]
[1725995657972,1.65207453,2363.2,2362.8,0.7576]
[1725995658166,0.42315,2363.1,2362.9,0.42317]
[1725995658372,2.07522453,2363.1,2362.9,0.42317]
[1725995658574,0.42315,2363.1,2362.9,0.42317]
[1725995658970,0.42315,2363.1,2363.0,0.42316]
[1725995659579,0.42315,2363.1,2362.9,0.42317]
[1725995659880,0.42315,2363.1,2362.9,0.42318]
[1725995660078,0.42315,2363.1,2363.0,0.42316]
[1725995660462,1.65207453,2363.2,2362.8,0.7576]
[1725995660463,1.65207453,2363.2,2362.9,0.42317]
[1725995660768,2.07521453,2363.2,2363.0,0.42316]
[1725995661677,1.65207453,2363.2,2363.0,0.42316]
[1725995661877,1.65207453,2363.1,2363.0,0.42316]
[1725995662077,2.6277352,2363.3,2363.0,0.42316]
[1725995662078,1.65207453,2363.2,2363.0,0.42316]
[1725995662473,1.65207453,2363.1,2363.0,0.42316]
[1725995662873,1.65207453,2363.2,2363.1,0.42315]
[1725995663470,1.65207453,2363.3,2363.2,0.42313]
[1725995664178,2.07519453,2363.3,2363.1,0.42314]
[1725995664383,1.65207453,2363.3,2363.2,0.42313]
[1725995665276,2.07518453,2363.3,2363.2,0.42313]
[1725995665477,1.65207453,2363.3,2363.2,0.42313]
[1725995666179,2.07518453,2363.3,2363.2,0.42313]
[1725995666479,6.4358152,2363.3,2362.9,0.42317]
[1725995666670,0.42315,2363.1,2362.9,0.42317]
[1725995666871,0.42315,2363.1,2363.0,0.42316]
[1725995667068,2.07750965,2363.2,2363.0,0.42316]
[1725995667269,0.42315,2363.1,2362.9,0.42317]
[1725995667470,2.07751965,2363.1,2363.0,0.42316]
[1725995667873,1.65436965,2363.1,2363.0,0.42316]
[1725995668071,0.42314,2363.2,2363.0,0.42316]
[1725995668072,2.07750965,2363.2,2363.0,0.42316]
[1725995668276,1.65436965,2363.1,2363.0,0.42316]
[1725995668676,0.42317,2363.0,2362.8,1.18079]
[1725995668877,2.07726767,2363.0,2362.8,1.18079]
[1725995669281,2.07726767,2363.0,2362.9,0.42318]
[1725995670379,2.07725767,2363.0,2362.9,0.42318]
[1725995671088,1.65409767,2363.1,2363.0,0.42316]
[1725995671292,2.07723767,2363.2,2363.0,0.42316]
[1725995672685,1.65409767,2363.1,2363.0,0.42316]
[1725995672986,2.07723767,2363.2,2363.0,0.42316]
[1725995673174,1.65409767,2363.1,2363.0,0.42316]
[1725995674180,1.65409767,2363.3,2363.0,4.72615062]
[1725995674382,1.65409767,2363.3,2363.2,0.42313]
[1725995675687,0.42309,2363.4,2363.3,0.42311]
[1725995677484,2.6277052,2363.5,2363.3,0.42311]
[1725995677689,1.65572114,2363.4,2363.3,0.42311]
[1725995678486,2.2046152,2363.5,2363.0,1.05791]
[1725995678686,2.07875895,2363.4,2363.1,0.49413862]
[1725995678887,2.07875895,2363.4,2363.3,0.42311]
[1725995679788,0.4231,2363.4,2363.3,0.42311]
[1725995680893,2.6277052,2363.5,2363.3,0.42311]
[1725995681079,2.2046152,2363.6,2363.4,0.42309]
[1725995681279,0.42308,2363.5,2363.4,0.42309]
[1725995681893,2.07912126,2363.5,2363.4,0.42309]
[1725995682094,1.6560131,2363.5,2363.4,0.42309]
[1725995682392,1.65596935,2363.5,2363.4,0.42308]
[1725995682992,2.07904935,2363.5,2363.4,0.42308]
[1725995683185,0.42309,2363.4,2363.3,0.7931]
[1725995683392,2.07906486,2363.4,2363.3,0.7931]
[1725995683598,1.65597486,2363.4,2363.3,0.7931]
[1725995684182,0.42311,2363.4,2363.2,0.42312]
[1725995684386,2.07892667,2363.3,2362.9,1.05796]
[1725995684687,1.65581667,2363.3,2363.2,0.42313]
[1725995685485,2.07890667,2363.4,2363.3,0.42311]
[1725995685686,0.42309,2363.4,2363.3,0.42311]
[1725995686388,2.2046152,2363.4,2363.3,0.42311]
[1725995686593,0.42311,2363.3,2363.2,0.42312]
[1725995686795,2.07914952,2363.3,2363.2,0.42312]
[1725995687183,1.65603952,2363.3,2363.2,0.42312]
[1725995687688,1.65610424,2363.3,2363.2,0.42312]
[1725995687888,2.07921424,2363.3,2363.2,0.42312]
[1725995688083,1.65610424,2363.3,2363.2,0.42312]
[1725995689291,2.07922424,2363.3,2362.9,1.05796]
[1725995689496,2.07922424,2363.3,2363.1,0.42314]
[1725995689497,1.65616797,2363.2,2363.1,0.42314]
[1725995689699,2.07929797,2363.2,2363.1,0.49416349]
[1725995689994,2.07929797,2363.2,2363.1,0.42315]
[1725995689995,2.07930797,2363.2,2363.1,0.42315]
[1725995691192,1.65616797,2363.2,2363.1,0.91732123]
[1725995691494,0.42311,2363.3,2363.2,0.42313]
[1725995691689,0.42311,2363.3,2363.2,0.91730123]
[1725995691998,2.08007799,2363.3,2363.2,0.91730123]
[1725995692394,2.6277252,2363.3,2363.2,0.49417123]
[1725995692793,0.42311,2363.3,2363.2,0.91730123]
[1725995693095,2.6277252,2363.3,2363.2,0.91730123]
[1725995693797,2.6277252,2363.3,2363.2,0.49417123]
[1725995694098,2.6277252,2363.3,2363.2,0.91730123]
[1725995695000,2.2046152,2363.3,2363.2,0.91730123]
[1725995695695,2.6277252,2363.3,2363.2,0.91730123]
[1725995696296,2.6277252,2363.3,2363.2,0.49417123]
[1725995696801,0.42313,2363.2,2363.0,0.79215]
[1725995696997,2.63407629,2363.2,2363.1,0.49417748]
[1725995698396,2.63407629,2363.2,2363.0,0.79216]
[1725995698603,2.63407629,2363.2,2363.1,0.4941725]
[1725995698903,0.42313,2363.2,2363.1,0.4941725]
[1725995699098,0.42313,2363.2,2363.1,0.49418397]
[1725995700002,0.42313,2363.2,2362.3,1.52430938]
[1725995700003,1.05805,2362.7,2362.3,1.52430938]
[1725995700201,4.95826202,2362.4,2362.3,0.4007]
[1725995700500,0.4233,2362.3,2362.0,0.82403]
[1725995700705,0.4233,2362.3,2362.0,0.4007]
[1725995700706,1.65788056,2362.1,2362.0,0.4007]
[1725995700899,1.65788056,2362.1,2362.0,41.62404]
[1725995701205,1.65788056,2362.1,2362.0,41.2007]
[1725995701206,0.42333,2362.1,2362.0,41.2007]
[1725995701500,1.65637751,2362.1,2362.0,41.2007]
[1725995701908,2.07970751,2362.1,2362.0,41.2007]
[1725995702096,1.65637751,2362.1,2362.0,41.2007]
[1725995702400,1.65637751,2362.1,2362.0,0.4007]
[1725995702791,1.65637751,2362.1,2362.0,41.2007]
[1725995703904,1.65637751,2362.1,2362.0,41.62404]
[1725995704096,1.65637751,2362.1,2362.0,41.2007]
[1725995704296,1.65637751,2362.2,2362.0,41.62403]
[1725995704600,2.07968751,2362.2,2362.0,41.2007]
[1725995705299,2.07969751,2362.2,2362.0,41.2007]
[1725995705506,0.42332,2362.2,2362.0,41.2007]
[1725995705803,0.42332,2362.2,2362.0,41.62404]
[1725995705992,2.07967751,2362.3,2362.0,41.62404]
[1725995706194,2.07967751,2362.3,2362.0,41.2007]
[1725995706195,0.42332,2362.2,2362.0,41.2007]
[1725995707104,0.42332,2362.2,2361.8,0.3652]
[1725995707105,0.42333,2362.1,2361.8,0.78857]
[1725995707311,0.42336,2361.9,2361.8,0.3652]
[1725995707598,0.42336,2361.9,2361.7,0.7637]
[1725995707599,4.075,2362.0,2361.7,0.3939]
[1725995707800,0.42338,2361.8,2361.7,0.3939]
[1725995708297,0.42338,2361.8,2360.9,5.45985938]
[1725995708298,0.42342,2361.6,2360.9,5.45985938]
[1725995708503,0.42342,2361.6,2361.4,0.7847]
[1725995708889,3.3,2361.8,2361.5,0.378]
[1725995709100,3.72339,2361.8,2361.5,0.80142]
[1725995709304,0.42339,2361.8,2361.5,0.378]
[1725995709501,0.42339,2361.8,2361.6,0.42341]
[1725995709801,1.65637751,2362.1,2361.5,0.378]
[1725995710106,5.5107735,2362.2,2361.6,0.4234]
[1725995710107,0.42337,2361.9,2361.6,0.4234]
[1725995710293,0.42339,2361.8,2361.5,0.80142]
[1725995710500,3.3,2362.0,2361.5,0.378]
[1725995710501,0.4234,2361.7,2361.5,0.378]
[1725995710696,0.3662,2361.9,2361.5,0.80143]
[1725995710892,0.4234,2361.7,2361.5,0.378]
[1725995711195,0.3662,2361.9,2361.5,0.378]
[1725995711502,0.42337,2361.9,2361.6,0.4234]
[1725995711693,0.42338,2361.8,2361.6,0.4234]
[1725995711896,0.42338,2361.8,2361.5,0.80142]
[1725995712296,3.3,2361.9,2361.5,0.378]
[1725995712498,3.3,2361.9,2361.6,0.42341]
[1725995712702,0.42339,2361.8,2361.5,0.80142]
[1725995713004,3.3,2361.9,2361.6,0.42341]
[1725995713005,3.72337,2361.9,2361.6,0.42341]
[1725995713208,0.42338,2361.8,2361.6,0.42341]
[1725995713809,0.42336,2362.0,2361.7,0.42339]
[1725995714112,0.42337,2361.9,2361.7,0.42339]
[1725995714993,0.42337,2361.9,2361.5,0.378]
[1725995715195,0.42341,2361.7,2361.5,0.378]
[1725995715408,0.42341,2361.7,2361.5,0.80143]
[1725995715801,0.42339,2361.8,2361.6,0.4234]
[1725995716001,3.3,2361.9,2361.5,0.378]
[1725995716002,0.4234,2361.7,2361.5,0.80142]
[1725995716608,0.4234,2361.7,2361.5,0.80143]
[1725995717403,0.42342,2361.6,2361.5,0.378]
[1725995717707,0.42343,2361.5,2361.4,0.3939]
[1725995718105,0.42343,2361.6,2361.4,0.3939]
[1725995718309,0.42343,2361.6,2361.4,0.81735]
[1725995719004,0.42343,2361.6,2361.4,0.3939]
[1725995719510,0.42343,2361.6,2361.4,0.81735]
[1725995720105,0.42343,2361.6,2361.4,0.3939]
[1725995720409,0.42342,2361.6,2361.4,0.42345]
[1725995721410,3.6857,2361.7,2361.1,0.39878978]
[1725995721607,3.3,2361.5,2361.3,0.42346]
[1725995721806,0.42342,2361.6,2361.4,0.42345]
[1725995722309,0.42342,2361.6,2361.3,0.42346]
[1725995722512,0.42344,2361.5,2361.3,0.42346]
[1725995722698,0.42344,2361.5,2361.4,0.3836]
[1725995722902,0.42342,2361.6,2361.4,41.60704]
[1725995723103,3.6857,2361.7,2361.4,41.1836]
[1725995723104,0.42343,2361.5,2361.4,41.1836]
[1725995723304,0.42343,2361.5,2361.4,41.60705]
[1725995723599,0.42343,2361.5,2361.4,41.1836]
[1725995724106,0.42343,2361.5,2361.4,41.60705]
[1725995724309,0.42343,2361.6,2361.4,41.60705]
[1725995724512,0.42339,2361.8,2361.6,0.42341]
[1725995724806,0.42339,2361.8,2361.7,0.3843]
[1725995725199,4.35833,2362.1,2361.8,0.42337]
[1725995725512,0.42335,2362.0,2361.8,0.42337]
[1725995725714,0.42334,2362.0,2361.8,0.42337]
[1725995725905,0.42334,2362.0,2361.9,0.3727]
[1725995726909,1.05821,2362.4,2361.9,0.3727]
[1725995727109,0.42326,2362.5,2362.3,0.42328]
[1725995727407,1.05806,2362.7,2362.4,0.7662]
[1725995727714,3.3,2362.8,2362.4,0.7662]
[1725995727916,4.35795,2363.0,2362.5,0.42324]
[1725995728119,0.42319,2362.9,2362.6,0.42323]
[1725995728299,0.42319,2362.9,2362.5,3.6897]
[1725995728504,0.42318,2363.0,2362.7,0.42321]
[1725995728703,0.42318,2363.0,2362.6,40.8]
[1725995728704,0.42318,2362.9,2362.6,41.22322]
[1725995728914,0.42317,2363.0,2362.6,41.22322]
[1725995729617,0.42319,2362.9,2362.6,40.8]
[1725995730006,3.3,2363.1,2362.6,40.8]
[1725995730007,0.4232,2362.8,2362.6,40.8]
[1725995730208,3.3,2362.9,2362.6,40.8]
[1725995730918,0.42322,2362.7,2362.6,40.8]
[1725995731111,0.42321,2362.8,2362.6,40.8]
[1725995732009,0.42319,2362.9,2362.6,40.8]
[1725995732212,3.6892,2363.3,2362.8,0.42319]
[1725995732414,3.6892,2363.3,2362.6,40.8]
[1725995732415,0.42313,2363.2,2362.9,0.82028]
[1725995732715,2.71409751,2363.5,2363.0,0.3695]
[1725995732716,0.4231,2363.4,2363.0,0.3695]
[1725995733013,0.4231,2363.4,2363.0,0.79265]
[1725995733212,3.6802,2363.5,2363.0,0.3695]
[1725995733704,0.42314,2363.2,2363.0,0.3695]
[1725995733906,0.42315,2363.1,2363.0,0.3695]
[1725995734308,0.42314,2363.2,2363.0,0.3695]
[1725995734708,0.42315,2363.1,2363.0,0.3695]
[1725995735117,1.05774,2363.4,2363.0,0.3695]
[1725995735313,0.42315,2363.1,2363.0,0.3695]
[1725995736210,0.42314,2363.2,2363.0,0.3695]
[1725995736406,0.42315,2363.1,2363.0,0.3695]
[1725995736807,0.42314,2363.2,2363.0,0.3695]
[1725995737417,0.42315,2363.1,2363.0,0.3695]
[1725995737812,4.65515,2363.1,2362.7,0.3652]
[1725995738020,4.65515,2363.1,2362.8,0.79889]
[1725995738021,0.42315,2363.1,2362.8,0.79889]
[1725995738315,0.42313,2363.2,2362.8,0.3757]
[1725995738516,1.65637751,2363.4,2362.8,0.3757]
[1725995738709,0.42312,2363.3,2363.0,0.42315]
[1725995739013,0.42313,2363.2,2363.0,0.42315]
[1725995739218,0.42312,2363.3,2362.8,0.3757]
[1725995739416,5.33657751,2363.5,2363.1,0.42314]
[1725995739620,0.42312,2363.3,2363.2,0.7754]
[1725995741314,6.01408751,2363.5,2363.2,0.7754]
[1725995741820,0.42311,2363.3,2363.2,0.7754]
[1725995742224,0.42311,2363.3,2362.7,3.6652]
[1725995742225,5.28902,2363.3,2362.8,0.4232]
[1725995742426,0.42317,2363.0,2362.8,1.1843]
[1725995742921,0.42316,2363.1,2362.9,0.42318]
[1725995743117,0.42316,2363.1,2362.8,0.7611]
[1725995743118,0.42316,2363.1,2362.8,1.18429]
[1725995743316,0.42317,2363.0,2362.8,1.18429]
[1725995743714,0.42315,2363.1,2362.9,0.42318]
[1725995744027,0.42315,2363.1,2362.8,0.7611]
[1725995744028,0.42314,2363.2,2363.0,0.42316]
[1725995745313,0.42315,2363.1,2363.0,0.42316]
[1725995745514,0.42315,2363.1,2362.9,0.42317]
[1725995745921,0.42318,2362.9,2362.8,0.7611]
[1725995746620,0.42324,2362.6,2362.4,0.42327]
[1725995746823,0.42325,2362.6,2362.4,0.42327]
[1725995747016,0.42325,2362.6,2362.3,0.80198]
[1725995747325,0.42325,2362.6,2362.4,0.3706]
[1725995748126,0.42325,2362.5,2362.4,0.3706]
[1725995749218,0.42318,2362.9,2362.7,0.42322]
[1725995749421,0.42319,2362.9,2362.7,0.42321]
[1725995749615,1.65637751,2363.1,2362.8,0.7732]
[1725995749816,1.65637751,2363.3,2362.8,0.7732]
[1725995750026,6.01411751,2363.5,2363.0,0.42315]
[1725995750323,0.42313,2363.2,2363.1,0.3972]
[1725995751216,0.42313,2363.2,2362.8,0.7732]
[1725995751217,0.42318,2362.9,2362.8,0.7732]
[1725995751621,0.42318,2362.9,2362.8,1.1964]
[1725995751819,0.42318,2362.9,2362.8,0.7732]
[1725995753433,0.42322,2362.8,2362.6,0.3972]
[1725995753636,0.42323,2362.7,2362.5,0.81175]
[1725995754619,4.95637751,2363.1,2362.5,0.3885]
[1725995754826,0.42325,2362.5,2362.4,0.3863]
[1725995755130,0.42325,2362.6,2362.4,0.3863]
[1725995755523,1.43092,2362.8,2362.4,0.3863]
[1725995755524,0.42321,2362.8,2362.5,0.42325]
[1725995755718,0.42321,2362.8,2362.6,0.3912]
[1725995755928,0.4232,2362.9,2362.6,0.81443]
[1725995756129,6.38717751,2363.1,2362.6,0.3912]
[1725995756726,6.38717751,2363.1,2362.4,0.3863]
[1725995756727,1.05792,2363.0,2362.4,0.80957]
[1725995756919,1.05792,2363.0,2362.5,0.3912]
[1725995756920,0.42324,2362.6,2362.5,0.3912]
[1725995757323,0.42323,2362.7,2362.5,0.3912]
[1725995758739,0.42323,2362.7,2362.5,0.81445]
[1725995759330,0.42324,2362.6,2362.5,0.3912]
[1725995759534,5.32927751,2363.1,2362.3,44.1]
[1725995759535,1.05814,2362.5,2362.3,40.8]
[1725995759726,0.42327,2362.4,2362.3,40.8]
[1725995760428,1.05819,2362.4,2361.9,0.3806]
[1725995760731,1.05828,2362.2,2361.9,0.3806]
[1725995760923,0.42334,2362.0,2361.9,0.3806]
[1725995761326,0.42334,2362.0,2361.9,4.6142]
[1725995761535,0.42336,2361.9,2361.8,41.1966]
[1725995761728,0.42336,2361.9,2361.8,40.8]
[1725995762122,7.5336,2361.9,2361.2,0.7489]
[1725995762430,0.42337,2361.9,2361.3,3.3]
[1725995762631,0.42337,2361.9,2361.3,44.1]
[1725995762835,0.42337,2361.9,2361.5,0.42342]
[1725995763040,0.3696,2362.0,2361.6,0.81771]
[1725995763227,0.79296,2362.0,2361.6,0.81771]
[1725995763539,0.42336,2361.9,2361.6,0.3943]
[1725995763725,0.42336,2361.9,2361.7,0.3752]
[1725995764038,0.3696,2362.0,2361.7,0.3752]
[1725995764238,0.42332,2362.2,2361.8,0.79997]
[1725995764424,0.42331,2362.2,2361.8,0.3766]
[1725995764624,0.42333,2362.1,2361.8,0.79997]
[1725995764829,0.42333,2362.1,2361.8,0.3766]
[1725995765032,0.42333,2362.1,2361.8,0.79998]
[1725995765532,0.42333,2362.1,2361.8,0.3766]
[1725995765932,1.65637751,2362.3,2361.9,0.42336]
[1725995766136,0.4233,2362.3,2361.9,0.42336]
[1725995766335,0.4233,2362.3,2361.8,0.3766]
[1725995766336,6.55505751,2362.4,2361.8,0.3766]
[1725995766532,0.42327,2362.4,2361.9,3.3]
[1725995766726,0.42327,2362.4,2362.1,0.42332]
[1725995766931,0.42327,2362.4,2362.2,0.4048]
[1725995768034,0.42329,2362.3,2362.2,0.4048]
[1725995768434,3.3,2362.4,2361.8,0.3766]
[1725995768630,0.42334,2362.0,2361.7,0.79859]
[1725995769748,0.392,2362.1,2361.7,0.3752]
[1725995770040,0.42339,2361.8,2361.6,0.3788]
[1725995770238,0.42339,2361.8,2361.4,0.3832]
[1725995770239,1.05846,2361.8,2361.4,0.7626]
[1725995770435,0.42343,2361.5,2361.4,0.3794]
[1725995770635,0.42343,2361.5,2361.3,41.22347]
[1725995771138,0.42343,2361.5,2361.3,40.8]
[1725995771338,1.05854,2361.7,2361.3,40.8]
[1725995771647,0.42345,2361.5,2361.3,40.8]
[1725995772034,0.42345,2361.5,2361.3,41.22346]
[1725995772433,0.42343,2361.6,2361.3,41.22346]
[1725995772630,0.42341,2361.7,2361.4,0.82404]
[1725995772933,0.42341,2361.7,2361.5,0.3709]
[1725995773138,0.42341,2361.7,2361.6,0.3687]
[1725995774534,0.42341,2361.7,2361.4,0.82404]
[1725995774535,0.42343,2361.5,2361.4,0.4006]
[1725995774834,0.42343,2361.5,2361.4,0.7693]
[1725995777745,0.42343,2361.6,2361.4,1.19275]
[1725995777943,0.42343,2361.5,2361.4,0.7693]
[1725995778242,1.05872,2361.3,2360.5,0.21668584]
[1725995778448,0.42352,2361.1,2360.8,1.20415]
[1725995778653,0.42352,2361.1,2360.9,40.8]
[1725995779245,0.42352,2361.1,2360.9,41.22354]
[1725995779443,0.42352,2361.1,2360.9,40.8]
[1725995780144,0.42352,2361.1,2360.9,41.22354]
[1725995780534,0.42352,2361.1,2360.9,40.8]
[1725995780739,1.05872,2361.3,2360.8,0.7806]
[1725995780944,3.3,2361.1,2360.8,0.3996]
[1725995781242,0.42354,2360.9,2360.8,0.3996]
[1725995781440,0.42353,2361.0,2360.8,0.3996]
[1725995781637,0.42354,2360.9,2360.8,0.3996]
[1725995781838,3.3,2361.1,2360.8,0.3996]
[1725995782042,0.42353,2361.0,2360.8,0.3996]
[1725995782235,0.42353,2361.0,2360.3,3.3]
[1725995782236,3.3,2360.9,2360.2,3.3]
[1725995782435,3.3,2360.9,2360.5,0.375]
[1725995782436,0.42355,2360.9,2360.5,0.375]
[1725995782637,1.85982776,2361.4,2360.5,0.375]
[1725995782638,3.3,2361.3,2360.5,0.375]
[1725995782845,3.3,2361.3,2360.6,3.3]
[1725995782846,0.42349,2361.2,2360.6,3.3]
[1725995783045,0.42349,2361.2,2360.7,0.42358]
[1725995783235,0.42349,2361.2,2360.7,0.42357]
[1725995783441,0.42349,2361.2,2360.8,0.3934]
[1725995783636,0.42349,2361.2,2360.9,0.3846]
[1725995783946,0.42349,2361.2,2361.0,0.375]
[1725995784352,0.42347,2361.3,2361.0,0.375]
[1725995784538,0.7572,2361.4,2361.0,0.375]
[1725995784856,0.42345,2361.5,2361.0,4.09851]
[1725995785349,0.7867,2361.6,2361.0,3.675]
[1725995785547,0.42345,2361.4,2361.0,0.375]
[1725995785753,0.42348,2361.3,2361.0,0.375]
[1725995786145,0.42349,2361.2,2361.0,0.375]
[1725995786351,3.3,2361.5,2361.0,0.375]
[1725995786352,0.42348,2361.3,2361.0,0.375]
[1725995786546,4.3586,2361.5,2361.0,0.375]
[1725995786748,0.4235,2361.2,2361.1,40.8]
[1725995787051,0.42348,2361.3,2361.1,40.8]
[1725995787240,0.42349,2361.2,2361.1,40.8]
[1725995789139,0.7867,2361.6,2361.1,40.8]
[1725995789140,0.42347,2361.3,2361.1,40.8]
[1725995789652,1.84528,2361.6,2360.8,0.3934]
[1725995789653,4.2352,2361.2,2360.8,0.3934]
[1725995789856,0.42352,2361.0,2360.8,0.3934]
[1725995790349,3.6767,2361.3,2360.8,41.1934]
[1725995790556,0.42353,2361.0,2360.8,41.1934]
[1725995792746,4.73541,2361.3,2360.8,41.1934]
[1725995792945,0.4235,2361.2,2360.8,41.61695]
[1725995793154,0.42352,2361.1,2360.8,41.61695]
[1725995793356,4.73541,2361.3,2360.9,0.42354]
[1725995793357,0.4235,2361.2,2360.9,0.42354]
[1725995793656,0.42351,2361.1,2360.8,41.61695]
[1725995794047,0.42349,2361.2,2360.9,0.42353]
[1725995794251,0.42351,2361.1,2360.8,41.61695]
[1725995794954,0.42349,2361.2,2360.9,0.42353]
[1725995795154,0.80018,2361.3,2361.0,0.42351]
[1725995795457,0.42346,2361.4,2361.1,0.8095]
[1725995795749,3.3,2361.5,2361.1,0.386]
[1725995795750,0.42349,2361.2,2361.1,0.386]
[1725995797452,4.35862,2361.5,2361.1,0.386]
[1725995797453,0.42348,2361.3,2361.1,0.386]
[1725995797647,0.42349,2361.2,2361.1,0.386]
[1725995797852,0.42348,2361.3,2361.1,0.386]
[1725995800157,1.10262776,2361.6,2361.4,0.42344]
[1725995800358,4.102,2361.7,2361.5,0.80632]
[1725995800660,1.10262776,2361.9,2361.6,0.42341]
[1725995800857,0.42338,2361.8,2361.6,0.81271]
[1725995801057,0.42338,2361.8,2361.6,0.3893]
[1725995801353,1.10262776,2361.9,2361.6,0.3893]
[1725995801555,0.42342,2361.6,2361.5,0.3829]
[1725995801747,0.42342,2361.6,2361.3,0.42346]
[1725995801748,4.35852,2361.7,2361.3,0.81277]
[1725995802054,0.42343,2361.6,2361.4,0.42345]
[1725995802955,1.10262776,2361.7,2361.5,0.403]
[1725995803152,1.65637751,2361.9,2361.5,0.403]
[1725995803153,1.10262776,2361.9,2361.5,0.403]
[1725995803359,1.10262776,2361.9,2361.8,0.42338]
[1725995803668,2.07971751,2362.0,2361.8,0.42338]
[1725995803669,1.10262776,2362.0,2361.8,0.42338]
[1725995803856,1.10262776,2362.0,2361.9,40.8]
[1725995804055,1.10262776,2362.0,2361.9,41.569]
[1725995804451,2.07971751,2362.0,2361.9,41.569]
[1725995804655,1.52449654,2362.0,2361.9,41.569]
[1725995805854,1.10105695,2362.0,2361.9,45.29236]
[1725995806055,1.10105695,2362.3,2362.0,0.42333]
[1725995806255,1.10105695,2362.3,2362.1,0.3746]
[1725995806460,1.52433695,2362.4,2362.1,0.3746]
[1725995806651,1.10105695,2362.3,2362.1,0.3746]
[1725995807254,1.10105695,2362.4,2362.1,0.3746]
[1725995807454,1.10105695,2362.5,2362.1,0.79791]
[1725995807663,1.10105695,2362.4,2362.1,0.3746]
[1725995808568,1.10105695,2362.5,2362.1,0.79792]
[1725995808751,1.10105695,2362.5,2362.1,0.3746]
[1725995809063,1.52431695,2362.5,2362.1,0.3746]
[1725995809268,1.52431695,2362.5,2362.1,0.79792]
[1725995809865,1.10105695,2362.5,2362.2,0.42331]
[1725995810166,1.10105695,2362.5,2362.1,0.79791]
[1725995810357,1.10105695,2362.5,2362.1,0.3746]
[1725995810551,1.10105695,2362.6,2362.4,0.42326]
[1725995810755,1.52425695,2362.8,2362.5,0.7456]
[1725995811162,0.42323,2362.7,2362.5,0.7456]
[1725995811363,0.42324,2362.6,2362.5,0.7456]
[1725995811560,0.42324,2362.6,2362.1,0.3746]
[1725995811561,0.42326,2362.5,2362.1,0.79792]
[1725995811868,1.10105695,2362.7,2362.2,0.3722]
[1725995811869,0.42328,2362.4,2362.2,0.3722]
[1725995812060,0.79368,2362.4,2362.2,0.3722]
[1725995812257,0.42329,2362.3,2362.2,0.3722]
[1725995812658,0.79368,2362.4,2362.2,0.3722]
[1725995813069,0.42329,2362.3,2362.2,0.3722]
[1725995814066,0.79368,2362.4,2362.2,0.3722]
[1725995814259,1.52432695,2362.5,2362.2,0.3722]
[1725995814463,0.42327,2362.5,2362.2,0.3722]
[1725995815071,0.42327,2362.5,2362.2,0.79551]
[1725995815765,0.42327,2362.4,2362.2,0.79551]
[1725995815969,0.42327,2362.5,2362.2,0.79551]
[1725995816165,1.52428695,2362.7,2362.4,0.42326]
[1725995816362,0.42323,2362.7,2362.5,0.4032]
[1725995816560,1.49305695,2362.8,2362.5,0.4032]
[1725995816763,0.42324,2362.6,2362.5,0.4032]
[1725995816966,1.10105695,2362.8,2362.5,0.4032]
[1725995817165,1.10105695,2362.9,2362.7,0.4232]
[1725995817365,0.42317,2363.0,2362.8,0.3978]
[1725995817665,0.42317,2363.0,2362.9,0.4032]
[1725995817869,0.42316,2363.1,2362.9,0.4032]
[1725995818268,0.42316,2363.1,2362.9,0.82638]